bitfinex/quotes_ETHUSD_20251217
["timestamp","ask_amount","ask_price","bid_price","bid_amount"]
[1765989555400,0.6020103,2845.1,2845.0,0.002]
[1765989555606,3.19221464,2845.1,2845.0,0.002]
[1765989555822,17.69935764,2845.1,2845.0,0.002]
[1765989556026,1.70301903,2844.6,2843.9,0.002]
[1765989556235,0.46438023,2844.4,2843.9,0.002]
[1765989556546,0.46438023,2845.3,2843.9,0.002]
[1765989556740,7.67818824,2845.5,2843.9,0.002]
[1765989556741,1.0075143,2845.2,2843.9,0.002]
[1765989557118,0.6020103,2845.2,2843.9,0.002]
[1765989557318,0.594,2845.2,2843.9,0.002]
[1765989557520,0.405504,2845.1,2843.9,0.002]
[1765989557715,0.594,2845.2,2843.9,0.002]
[1765989557928,3.929107,2844.4,2843.1,0.002]
[1765989558116,0.405504,2844.5,2843.1,0.002]
[1765989558117,0.86988423,2844.1,2843.1,0.002]
[1765989558317,0.0080103,2844.0,2843.1,0.002]
[1765989558514,5.4026,2844.1,2843.1,0.002]
[1765989558716,0.594,2844.0,2843.1,0.002]
[1765989558929,0.594,2843.9,2843.1,0.002]
[1765989559350,0.594,2843.9,2842.0,0.002]
[1765989559351,2.15878019,2843.4,2842.0,0.002]
[1765989559648,0.86988423,2843.2,2842.7,0.002]
[1765989559852,0.0080103,2843.1,2842.7,0.002]
[1765989560037,1.73943127,2843.0,2842.7,0.002]
[1765989560239,0.0080103,2842.9,2842.7,0.002]
[1765989560546,0.594,2842.8,2842.0,0.002]
[1765989560746,0.0080103,2842.7,2842.0,0.002]
[1765989561061,0.594,2842.8,2842.0,0.002]
[1765989561270,0.594,2843.2,2842.0,0.002]
[1765989561718,0.0080103,2843.1,2842.0,0.002]
[1765989561921,0.594,2843.2,2842.0,0.002]
[1765989562350,0.0080103,2843.9,2842.1,0.81705]
[1765989562552,0.6020103,2843.8,2842.2,8.1685]
[1765989562752,0.594,2843.8,2842.4,2.1999]
[1765989562934,0.594,2843.8,2842.6,8.1685]
[1765989563124,0.594,2843.8,2842.0,0.002]
[1765989563319,0.46438023,2843.7,2842.0,0.002]
[1765989563525,2.34142041,2843.6,2842.0,0.002]
[1765989563744,0.23414204,2843.5,2842.0,0.002]
[1765989564077,0.46438023,2843.2,2842.0,0.002]
[1765989564280,3.724775,2843.0,2842.0,0.002]
[1765989564490,0.46438023,2842.6,2842.0,0.002]
[1765989564781,0.6020103,2842.5,2842.0,0.002]
[1765989564976,0.23414204,2843.5,2842.0,0.002]
[1765989565164,0.405504,2843.1,2842.0,0.002]
[1765989565477,0.46438023,2843.9,2842.0,0.002]
[1765989565665,2.5362673,2843.8,2842.0,8.1705]
[1765989565840,6.644858,2843.6,2842.0,8.1705]
[1765989566270,0.594,2843.7,2842.0,8.1705]
[1765989566439,9.14677829,2844.2,2842.4,0.03139006]
[1765989566642,7.5728943,2844.1,2842.4,8.19989006]
[1765989566851,5.968958,2844.6,2842.5,5.9686]
[1765989567075,0.46438023,2844.3,2842.4,0.03139006]
[1765989567275,0.594,2844.2,2842.4,0.03139006]
[1765989567777,1.7115817,2845.4,2843.4,7.03383272]
[1765989567943,9.224199,2845.2,2843.4,7.03383272]
[1765989568139,0.594,2845.3,2843.5,8.1685]
[1765989568375,0.0080103,2845.1,2843.5,8.1685]
[1765989568547,0.0080103,2845.1,2843.3,3.51701295]
[1765989568746,13.239155,2845.2,2843.3,15.202553]
[1765989568972,0.405504,2845.0,2843.3,15.202553]
[1765989569144,0.0080103,2844.9,2843.3,15.202553]
[1765989569347,0.0080103,2844.9,2843.4,0.03139006]
[1765989569548,0.594,2845.3,2841.6,0.002]
[1765989569549,3.963801,2843.3,2841.6,0.002]
[1765989569744,15.59368082,2842.3,2841.6,0.002]
[1765989569949,15.00361323,2842.1,2841.6,0.002]
[1765989570148,16.73555456,2842.1,2841.6,0.002]
[1765989570883,26.13020956,2842.1,2841.6,0.002]
[1765989571065,24.39826823,2842.1,2841.6,0.002]
[1765989571296,5.41217823,2842.1,2841.6,0.002]
[1765989571495,8.10260371,2842.1,2841.6,0.002]
[1765989571805,29.21445949,2842.1,2841.6,0.002]
[1765989572008,26.88851816,2842.1,2841.6,0.002]
[1765989572175,16.01731049,2842.1,2841.6,0.002]
[1765989572503,13.69136916,2842.1,2841.6,0.002]
[1765989572705,3.73873223,2842.1,2841.6,0.002]
[1765989572904,3.23938023,2842.1,2841.6,0.002]
[1765989573534,14.84886564,2842.1,2841.6,0.002]
[1765989573804,3.36109123,2842.1,2841.6,0.002]
[1765989574234,2.76709123,2842.1,2841.6,0.002]
[1765989574382,3.36109123,2842.1,2841.6,0.002]
[1765989574699,3.70601168,2842.1,2841.6,0.002]
[1765989574911,30.40230768,2842.1,2841.6,0.002]
[1765989575102,30.39429738,2842.1,2841.6,0.002]
[1765989575493,26.71665171,2842.1,2841.6,0.002]
[1765989575812,0.80129038,2842.1,2841.6,0.002]
[1765989576011,24.459059,2842.1,2841.6,0.002]
[1765989576181,26.46608456,2842.1,2841.6,0.002]
[1765989576582,24.73414323,2842.1,2841.6,0.002]
[1765989576794,31.19452856,2842.1,2841.6,0.002]
[1765989577009,14.00651771,2842.1,2841.6,0.002]
[1765989577481,6.10775671,2842.1,2841.6,0.002]
[1765989577682,0.594,2842.1,2841.6,0.002]
[1765989577888,20.19653033,2842.1,2841.6,0.002]
[1765989578113,0.999504,2842.1,2841.6,0.002]
[1765989578311,18.03847486,2842.1,2841.6,0.002]
[1765989578498,6.25148,2842.1,2841.6,0.002]
[1765989578704,0.594,2842.2,2841.6,0.002]
[1765989578882,0.0080103,2842.1,2840.5,8.1685]
[1765989579086,0.405504,2842.1,2840.5,8.1685]
[1765989579314,0.86988423,2841.9,2840.5,8.1685]
[1765989579512,0.86988423,2841.9,2840.2,7.041655]
[1765989579513,0.0080103,2841.8,2840.2,7.041655]
[1765989579716,0.46438023,2841.6,2839.9,7.04250148]
[1765989580016,3.972,2841.9,2840.2,8.1685]
[1765989580201,0.46438023,2842.0,2840.2,8.1685]
[1765989580407,0.594,2841.9,2840.2,8.1685]
[1765989580595,0.0080103,2841.8,2840.2,8.1685]
[1765989580792,0.594,2841.7,2840.2,8.1685]
[1765989581005,0.594,2841.6,2840.2,8.1685]
[1765989581185,7.67744608,2842.1,2839.9,10.56375222]
[1765989581384,0.0080103,2842.0,2840.4,5.8952]
[1765989581609,0.405504,2842.4,2840.4,5.8952]
[1765989581811,1.77753861,2842.5,2840.4,3.52060824]
[1765989581812,0.405504,2842.0,2840.4,3.52060824]
[1765989582008,0.0080103,2841.9,2840.4,3.52062241]
[1765989582210,0.594,2841.8,2840.4,3.52062241]
[1765989582415,1.0075143,2841.7,2839.7,5.8972]
[1765989582612,0.86988423,2841.3,2839.7,0.002]
[1765989582810,0.594,2841.2,2840.0,3.5210542]
[1765989583021,0.594,2841.2,2839.8,3.52134897]
[1765989583022,0.594,2841.2,2839.8,3.52130496]
[1765989583187,1.77080017,2843.6,2839.7,0.002]
[1765989583391,0.46438023,2842.4,2840.5,7.0410139]
[1765989583690,3.079119,2842.0,2840.5,3.52050695]
[1765989584022,0.405504,2842.1,2840.5,3.52050695]
[1765989584023,0.594,2841.9,2840.5,3.52050695]
[1765989584221,0.594,2841.9,2840.0,11.60642754]
[1765989584222,0.405504,2841.8,2840.0,11.60642754]
[1765989584422,0.405504,2841.8,2840.3,3.52066804]
[1765989584423,0.405504,2841.6,2840.3,3.52066804]
[1765989584591,0.0080103,2841.5,2839.7,0.002]
[1765989584797,0.999504,2841.4,2839.7,0.002]
[1765989585229,0.0080103,2841.3,2839.9,3.52118492]
[1765989585424,0.86988423,2841.2,2839.7,0.002]
[1765989585623,0.0080103,2841.1,2839.8,3.52130863]
[1765989585922,0.0080103,2841.1,2839.7,0.002]
[1765989585923,0.405504,2841.0,2839.7,0.002]
[1765989586843,3.806516,2842.5,2840.0,6.300704]
[1765989587004,3.51687122,2843.5,2840.7,5.8952]
[1765989587335,0.594,2843.0,2841.2,8.0854]
[1765989587532,0.0080103,2842.9,2841.2,8.0854]
[1765989587704,0.0080103,2842.9,2841.4,7.03878368]
[1765989587705,0.001,2842.1,2841.4,7.03878368]
[1765989587907,0.001,2843.1,2841.9,0.03139006]
[1765989588233,0.001,2843.1,2841.8,2.1902]
[1765989588234,0.001,2843.1,2842.0,0.594]
[1765989588406,0.002,2843.1,2841.5,1.35727837]
[1765989588602,0.001,2843.0,2841.5,1.35727837]
[1765989588835,0.001,2843.0,2841.6,0.76382666]
[1765989589512,0.001,2843.1,2841.7,8.0854]
[1765989589716,0.001,2843.1,2841.8,3.51889647]
[1765989589953,0.001,2843.1,2841.8,7.03779294]
[1765989590149,0.001,2843.1,2841.9,8.0854]
[1765989590360,0.001,2843.1,2842.0,0.76327837]
[1765989590556,0.001,2843.3,2842.1,0.06657531]
[1765989590852,0.001,2844.4,2842.8,2.1902]
[1765989591159,0.001,2844.4,2842.9,8.6794]
[1765989591519,0.001,2844.4,2842.6,0.03139006]
[1765989591520,0.0090103,2844.3,2842.6,0.03139006]
[1765989591758,0.001,2844.3,2842.8,7.03531728]
[1765989591965,0.001,2844.3,2842.9,0.76382666]
[1765989592123,0.001,2844.3,2843.2,5.8952]
[1765989592455,0.001,2844.3,2843.4,8.0854]
[1765989592620,0.001,2844.3,2843.0,8.0854]
[1765989592827,0.0090103,2844.3,2843.3,0.594]
[1765989593343,0.001,2844.3,2843.0,8.0854]
[1765989593547,0.001,2844.3,2843.4,0.594]
[1765989593925,0.001,2844.3,2843.4,4.11086505]
[1765989594156,0.001,2844.3,2843.4,7.62778141]
[1765989594653,0.001,2844.3,2843.6,2.1902]
[1765989595019,0.001,2844.3,2843.0,11.60278998]
[1765989595227,0.001,2844.3,2843.4,3.51690448]
[1765989595754,0.001,2844.3,2843.4,7.03382084]
[1765989595953,0.001,2845.4,2844.3,2.1902]
[1765989596250,0.0090103,2845.4,2844.0,5.8952]
[1765989596439,0.0090103,2845.4,2844.1,0.593]
[1765989596440,0.001,2845.4,2844.1,0.593]
[1765989596625,0.005,2845.4,2844.1,0.593]
[1765989596827,0.004,2845.2,2844.1,0.593]
[1765989597022,0.001,2845.4,2843.6,9.41186901]
[1765989597023,0.8427453,2845.1,2843.6,9.41186901]
[1765989597222,0.46538023,2845.4,2843.6,9.41186901]
[1765989597223,0.001,2845.4,2843.7,0.593]
[1765989597459,0.001,2845.4,2844.1,8.0854]
[1765989597669,0.0130103,2845.3,2844.2,0.593]
[1765989597829,0.0130103,2845.3,2844.3,0.589]
[1765989597830,0.005,2845.2,2844.3,0.589]
[1765989598163,0.005,2845.2,2843.7,11.6019317]
[1765989598164,0.405504,2844.8,2842.8,8.0854]
[1765989598327,0.001,2844.1,2842.1,5.8952]
[1765989598524,0.001,2843.9,2842.2,7.62978457]
[1765989598732,0.001,2843.8,2842.2,7.62978457]
[1765989598948,0.001,2843.7,2842.2,7.62978457]
[1765989599152,0.5147232,2844.7,2842.2,7.62978457]
[1765989599153,0.001,2844.2,2842.4,0.03139006]
[1765989599328,0.001,2844.2,2842.6,0.03139006]
[1765989599329,0.0090103,2844.2,2842.6,0.03139006]
[1765989599526,0.6960243,2844.7,2843.4,8.0854]
[1765989599728,0.0080103,2845.3,2843.5,0.593]
[1765989599957,0.0100103,2845.5,2844.0,8.0854]
[1765989600146,0.0002,2845.4,2844.1,0.593]
[1765989600357,0.0002,2845.4,2844.2,8.0854]
[1765989600662,0.001,2845.3,2843.6,7.03333802]
[1765989600827,0.001,2845.1,2843.7,0.593]
[1765989601194,0.0002,2845.4,2844.0,2.1902]
[1765989601361,0.0002,2845.4,2844.1,0.593]
[1765989601362,2.994219,2845.3,2844.1,0.593]
[1765989601528,0.46438023,2845.2,2844.1,0.593]
[1765989601730,0.0012,2845.4,2844.5,2.1902]
[1765989601731,0.0002,2845.4,2844.5,2.1902]
[1765989601935,0.0002,2845.4,2843.5,0.405504]
[1765989601936,0.001,2845.2,2844.4,0.593]
[1765989602237,5.477668,2845.3,2844.5,0.593]
[1765989602238,0.5478668,2845.1,2844.5,0.593]
[1765989602538,0.0002,2845.4,2844.5,0.593]
[1765989602539,0.0080103,2845.0,2844.5,0.593]
[1765989602740,0.0002,2845.4,2844.5,0.593]
[1765989602930,0.0002,2845.4,2844.6,5.8952]
[1765989603261,0.0002,2845.4,2844.5,7.62410004]
[1765989603262,0.001,2846.6,2845.0,6.300704]
[1765989603466,0.001,2846.6,2845.1,0.593]
[1765989603655,0.001,2846.6,2845.2,8.0854]
[1765989603856,0.001,2846.6,2845.2,3.05804]
[1765989604159,0.001,2846.6,2845.3,5.8952]
[1765989604368,0.001,2846.4,2844.6,3.51543132]
[1765989604526,0.001,2846.4,2844.7,0.593]
[1765989604527,0.0012,2846.0,2844.7,0.593]
[1765989604737,2.1146,2845.9,2844.7,0.593]
[1765989604944,0.0012,2845.5,2844.1,3.51594677]
[1765989605148,0.0012,2845.2,2843.9,3.51625749]
[1765989605348,0.0012,2845.2,2843.1,3.51721509]
[1765989605349,15.168347,2844.8,2843.0,5.8952]
[1765989605582,0.405504,2844.9,2843.2,5.8952]
[1765989605783,0.0080103,2844.8,2843.3,10.00522795]
[1765989605957,0.46438023,2844.6,2843.4,0.593]
[1765989606282,0.0012,2845.0,2843.3,3.51693695]
[1765989606443,0.0012,2844.5,2842.6,8.0854]
[1765989606647,0.0012,2844.9,2843.3,3.5170136]
[1765989606954,0.0012,2845.8,2843.8,5.8952]
[1765989607275,3.213013,2845.6,2843.9,9.48694]
[1765989607474,0.47239053,2845.5,2844.1,8.0854]
[1765989607682,0.46438023,2845.6,2844.1,8.0854]
[1765989607880,0.76906461,2845.7,2844.2,3.51592714]
[1765989607881,0.0092103,2845.7,2844.2,3.51592714]
[1765989608085,0.0012,2845.7,2844.2,3.51592714]
[1765989608285,0.46438023,2845.5,2844.2,4.23449217]
[1765989608576,0.0092103,2845.7,2844.2,0.71856503]
[1765989608780,0.0012,2845.5,2844.3,0.593]
[1765989608983,0.405504,2845.7,2844.3,0.593]
[1765989609150,0.0012,2846.0,2844.5,2.1909]
[1765989609353,0.0012,2846.0,2843.9,3.51619174]
[1765989609354,14.986204,2845.6,2844.6,0.5918]
[1765989609545,0.86988423,2845.5,2844.6,0.5918]
[1765989609750,0.405504,2845.5,2844.6,0.5918]
[1765989609977,0.46438023,2845.5,2844.6,0.5918]
[1765989610178,0.43209082,2845.4,2844.6,0.5918]
[1765989610378,0.0080103,2845.4,2844.2,3.51580367]
[1765989610579,0.0080103,2845.4,2844.3,0.593]
[1765989611091,0.46438023,2845.8,2844.3,0.593]
[1765989611251,0.46438023,2845.8,2843.3,0.03139006]
[1765989611252,7.68545638,2845.7,2843.3,0.03139006]
[1765989611453,7.68545638,2845.7,2843.3,7.8508]
[1765989611454,0.405504,2845.2,2843.3,7.8508]
[1765989611662,0.219015,2845.1,2843.6,3.5165654]
[1765989611990,0.0080103,2845.1,2843.5,11.36757155]
[1765989612191,6.414091,2845.0,2843.6,0.593]
[1765989612352,1.72833041,2845.1,2842.8,3.5176178]
[1765989612353,0.405504,2844.5,2842.8,3.5176178]
[1765989612554,0.0080103,2844.4,2842.9,0.593]
[1765989612781,0.4135143,2844.4,2842.8,3.51759159]
[1765989612984,0.4135143,2844.4,2842.9,0.35175916]
[1765989613161,2.14523784,2844.0,2842.3,3.51821388]
[1765989613494,0.405504,2843.8,2842.1,7.8508]
[1765989613793,0.405504,2843.6,2842.2,4.11137963]
[1765989614008,2.23684378,2844.1,2842.4,7.8508]
[1765989614009,0.46438023,2844.1,2842.4,7.8508]
[1765989614186,0.405504,2844.0,2842.4,7.8508]
[1765989614485,1.78711886,2844.4,2842.2,0.593]
[1765989614486,9.540328,2843.7,2842.2,0.593]
[1765989614691,1.77246355,2844.1,2842.0,0.002]
[1765989614692,0.405504,2843.5,2842.0,0.002]
[1765989614850,0.405504,2843.5,2842.3,0.593]
[1765989615055,0.46438023,2843.4,2842.3,0.593]
[1765989615354,0.46438023,2843.4,2842.0,3.52058112]
[1765989615355,0.0080103,2843.3,2842.0,0.002]
[1765989615563,0.0080103,2843.3,2842.1,0.593]
[1765989615785,0.405504,2842.9,2842.2,0.593]
[1765989616093,7.438399,2843.8,2842.0,0.002]
[1765989616287,2.15999298,2843.3,2842.1,0.593]
[1765989616464,6.729803,2843.1,2842.1,0.593]
[1765989616669,2.630323,2843.4,2842.1,0.593]
[1765989616854,0.405504,2843.3,2842.0,0.002]
[1765989617054,0.405504,2843.1,2842.0,0.002]
[1765989617388,2.70580813,2843.0,2842.0,0.002]
[1765989617585,0.405504,2842.7,2842.0,0.002]
[1765989617754,0.0080103,2842.6,2842.1,0.593]
[1765989617956,9.22838955,2842.9,2842.0,0.002]
[1765989618273,8.66769423,2842.4,2842.0,0.002]
[1765989618473,0.86988423,2842.1,2842.0,0.002]
[1765989618678,4.86470511,2842.1,2842.0,0.002]
[1765989618877,0.86988423,2842.1,2842.0,0.002]
[1765989619079,2.99249453,2842.1,2842.0,0.002]
[1765989619387,4.39038023,2842.1,2842.0,0.002]
[1765989619587,4.79588423,2842.1,2842.0,0.002]
[1765989619787,24.45258723,2842.1,2842.0,0.002]
[1765989620088,0.86988423,2842.1,2842.0,0.002]
[1765989620292,0.46438023,2842.1,2842.0,0.002]
[1765989620501,0.69638844,2843.5,2842.0,0.002]
[1765989620655,20.417494,2843.0,2842.0,0.002]
[1765989620853,10.939064,2843.4,2842.1,0.593]
[1765989621054,1.76249928,2843.3,2842.2,0.593]
[1765989621303,1.73943127,2843.0,2842.0,0.002]
[1765989621461,0.86988423,2842.4,2842.0,0.002]
[1765989621786,0.405504,2842.5,2842.0,0.002]
[1765989622099,0.405504,2842.3,2842.0,0.002]
[1765989622267,0.87789453,2842.2,2842.0,0.002]
[1765989622469,0.405504,2842.2,2842.0,0.002]
[1765989622668,0.405504,2842.5,2842.0,0.002]
[1765989623105,0.46438023,2842.7,2842.0,0.002]
[1765989623391,8.641876,2842.8,2842.0,0.002]
[1765989623392,9.22838955,2843.9,2842.0,0.002]
[1765989623557,0.03139006,2844.7,2842.0,1.1173627]
[1765989623756,20.13994803,2844.6,2842.3,5.4811]
[1765989624070,20.13994803,2844.6,2842.2,2.3697]
[1765989624071,9.22838955,2843.7,2842.4,0.593]
[1765989624389,0.86988423,2843.2,2842.4,0.593]
[1765989624563,0.405504,2843.2,2842.4,0.593]
[1765989624763,0.46438023,2843.0,2842.4,0.593]
[1765989625005,8.175293,2844.1,2842.5,5.51628029]
[1765989625212,2.201827,2844.1,2842.5,5.4811]
[1765989625495,0.03139006,2844.6,2842.4,0.88927]
[1765989625496,2.114212,2844.5,2842.8,7.8508]
[1765989625656,0.0080103,2844.4,2842.8,7.8508]
[1765989625858,0.03139006,2844.6,2842.6,8.31518023]
[1765989626052,15.101852,2844.7,2842.9,7.8508]
[1765989626253,8.65053,2844.7,2842.9,7.8508]
[1765989626485,8.4007,2844.7,2843.0,0.03517411]
[1765989626691,0.46438023,2844.6,2843.1,0.592]
[1765989626856,8.4007,2844.7,2843.1,0.592]
[1765989626857,8.327304,2845.0,2843.3,7.8508]
[1765989627059,5.171626,2844.8,2843.4,1.37708]
[1765989627374,0.0080103,2844.7,2843.4,0.592]
[1765989627587,1.75870836,2844.9,2843.4,0.592]
[1765989627781,0.0080103,2844.8,2843.5,7.8508]
[1765989628092,0.0080103,2844.8,2843.6,11.36746901]
[1765989628296,0.0080103,2845.2,2843.6,11.36746901]
[1765989628499,0.001,2845.5,2843.7,1.1367469]
[1765989628807,0.001,2845.5,2844.5,2.3697]
[1765989629099,0.001,2845.5,2843.7,1.17191235]
[1765989629100,4.1876,2845.4,2844.6,0.592]
[1765989629397,0.001,2845.5,2843.7,1.1367469]
[1765989629398,0.0080103,2845.3,2843.7,1.1367469]
[1765989629621,6.093391,2845.0,2843.8,0.592]
[1765989629919,0.4135143,2844.9,2843.8,0.592]
[1765989630206,0.001,2845.5,2844.4,2.3697]
[1765989630493,0.001,2845.5,2844.5,0.592]
[1765989630700,0.001,2845.5,2843.4,0.46438023]
[1765989630701,0.86988423,2845.3,2844.6,0.592]
[1765989631000,0.001,2845.5,2844.7,0.592]
[1765989631001,0.0080103,2845.2,2844.7,0.592]
[1765989631163,0.0080103,2845.1,2844.7,0.592]
[1765989631495,2.555777,2845.2,2844.7,0.592]
[1765989631664,0.43689406,2845.0,2842.4,7.8508]
[1765989631861,0.86988423,2844.6,2842.6,7.8508]
[1765989632093,0.86988423,2844.6,2842.7,0.592]
[1765989632094,0.86988423,2844.4,2842.7,0.592]
[1765989632296,0.0080103,2844.3,2842.7,0.592]
[1765989632479,0.0080103,2844.3,2842.7,1.05638023]
[1765989632674,0.405504,2844.9,2842.6,7.8508]
[1765989632675,0.405504,2844.4,2842.6,7.8508]
[1765989632884,0.46438023,2844.0,2842.7,0.592]
[1765989633114,0.0080103,2843.9,2842.7,0.592]
[1765989633416,0.86988423,2843.9,2842.8,0.592]
[1765989633574,0.405504,2843.9,2842.3,0.002]
[1765989633764,0.405504,2843.9,2842.4,1.37728]
[1765989634114,5.6734713,2843.8,2842.3,0.002]
[1765989634267,0.86988423,2844.0,2842.5,7.8508]
[1765989634467,0.03139006,2844.5,2842.7,5.4811]
[1765989634468,23.988207,2844.5,2842.7,5.4811]
[1765989634803,0.0080103,2844.4,2842.7,7.8508]
[1765989634997,0.46438023,2844.2,2842.8,7.8508]
[1765989635198,0.0080103,2844.1,2842.8,7.8508]
[1765989635396,0.46438023,2844.3,2842.7,0.78508]
[1765989635602,0.0080103,2844.2,2842.8,2.3697]
[1765989635800,0.405504,2844.5,2842.5,5.4811]
[1765989635973,0.405504,2844.5,2842.4,0.592]
[1765989635974,0.405504,2844.5,2842.9,5.4811]
[1765989636166,0.405504,2844.5,2843.1,7.8508]
[1765989636365,0.03139006,2844.6,2843.1,7.8508]
[1765989636577,0.405504,2844.5,2843.0,0.592]
[1765989636781,0.03139006,2844.8,2843.1,5.4811]
[1765989636981,0.0080103,2844.7,2843.3,7.8508]
[1765989637277,0.03139006,2844.8,2843.3,7.8508]
[1765989637599,0.03139006,2844.6,2843.4,0.592]
[1765989637799,0.46438023,2844.3,2843.4,0.592]
[1765989637970,0.98824442,2844.2,2843.5,0.592]
[1765989638166,0.86988423,2844.4,2843.5,0.592]
[1765989638366,0.405504,2844.6,2843.5,0.592]
[1765989638604,8.098035,2844.5,2843.5,0.592]
[1765989638902,0.2971281,2845.1,2844.0,5.4811]
[1765989638903,0.001,2845.1,2844.0,5.4811]
[1765989639107,0.001,2845.1,2843.8,2.3697]
[1765989639108,0.001,2845.1,2844.1,0.592]
[1765989639800,0.001,2845.1,2844.2,7.8508]
[1765989640010,0.001,2845.5,2844.4,2.3697]
[1765989640170,0.001,2846.3,2844.9,7.8508]
[1765989640367,0.001,2846.3,2845.1,7.8508]
[1765989640607,0.001,2846.3,2845.2,0.592]
[1765989640608,0.002,2846.2,2845.2,0.592]
[1765989640809,0.001,2846.3,2845.2,0.592]
[1765989641312,0.001,2846.3,2845.5,5.5066]
[1765989641495,0.001,2846.6,2845.8,7.65]
[1765989641902,0.001,2846.6,2846.0,7.65]
[1765989642109,0.001,2846.6,2846.1,0.592]
[1765989642420,0.001,2847.7,2846.4,2.1434]
[1765989642622,0.001,2847.7,2846.3,5.5066]
[1765989642816,0.001,2847.7,2846.6,7.65]
[1765989642986,0.001,2847.7,2846.7,0.592]
[1765989643186,0.85821769,2848.7,2846.5,5.5066]
[1765989643187,0.001,2848.7,2846.5,5.5066]
[1765989643387,0.006,2848.5,2846.7,5.5066]
[1765989643689,0.006,2848.5,2846.8,2.7354]
[1765989644088,0.0080103,2848.5,2846.8,2.7354]
[1765989644412,0.001,2847.4,2846.8,0.592]
[1765989644595,0.001,2847.4,2846.8,8.242]
[1765989644788,0.001,2847.4,2846.8,0.592]
[1765989645191,0.001,2847.4,2847.0,2.1434]
[1765989645399,0.001,2848.7,2847.1,7.68512345]
[1765989645599,0.007,2848.4,2846.2,5.5066]
[1765989645797,0.03239006,2848.7,2845.9,0.46438023]
[1765989645798,0.007,2848.1,2845.9,0.46438023]
[1765989646017,0.0080103,2848.0,2846.4,7.65]
[1765989646261,0.008,2847.8,2846.5,0.591]
[1765989646431,0.001,2847.8,2846.5,8.241]
[1765989646719,0.001,2847.8,2846.5,0.591]
[1765989646924,0.001,2847.8,2845.8,5.5066]
[1765989647088,0.001,2847.8,2846.5,5.5066]
[1765989647290,0.001,2847.8,2846.6,8.241]
[1765989647800,0.001,2847.8,2846.6,7.65]
[1765989648115,0.001,2847.8,2846.7,0.591]
[1765989648432,0.0002,2847.8,2846.8,7.65]
[1765989649185,0.0002,2847.8,2846.1,5.5066]
[1765989649493,0.0002,2847.8,2846.7,7.65]
[1765989649699,0.0002,2847.8,2846.8,0.591]
[1765989649894,0.0002,2847.8,2845.7,0.03139006]
[1765989649895,0.006,2847.3,2845.2,5.5066]
[1765989650108,0.007,2847.6,2845.3,0.65753573]
[1765989650434,0.46438023,2847.6,2845.9,2.1434]
[1765989650731,0.001,2847.3,2846.0,0.21434]
[1765989650929,0.007,2847.1,2845.6,7.65]
[1765989651237,0.007,2847.1,2844.6,1.267]
[1765989651238,0.46538023,2847.3,2845.8,7.65]
[1765989651431,0.007,2847.0,2845.9,0.591]
[1765989651620,0.007,2847.0,2846.0,0.591]
[1765989651930,0.007,2847.0,2846.1,0.585]
[1765989652227,0.46438023,2846.8,2844.5,1.29739006]
[1765989652427,0.03139006,2847.1,2845.2,5.5066]
[1765989652428,0.0080103,2846.7,2845.2,5.5066]
[1765989652807,0.46438023,2846.6,2845.3,0.591]
[1765989653162,0.0080103,2846.7,2845.3,8.241]
[1765989653503,0.0080103,2846.7,2845.4,3.51444436]
[1765989653700,0.86988423,2846.3,2845.3,0.591]
[1765989653910,0.46438023,2845.9,2845.3,0.591]
[1765989654118,0.0080103,2845.9,2845.3,0.591]
[1765989654524,0.0080103,2846.2,2845.3,0.591]
[1765989654803,0.86988423,2846.0,2844.6,7.65]
[1765989655003,0.03139006,2845.9,2844.7,0.591]
[1765989655249,9.24539062,2846.4,2844.7,0.591]
[1765989655250,0.0080103,2846.1,2844.7,0.591]
[1765989655457,0.0080103,2846.0,2844.8,3.5151856]
[1765989655610,0.405504,2846.7,2844.9,5.91721856]
[1765989655804,0.405504,2846.7,2844.7,3.5153012]
[1765989655805,0.46438023,2846.2,2844.7,3.5153012]
[1765989656055,0.86988423,2846.4,2845.0,2.1434]
[1765989656203,0.405504,2846.4,2845.0,2.1434]
[1765989656406,0.90127429,2846.3,2844.6,3.51542706]
[1765989656606,0.49577029,2845.8,2844.5,3.51550374]
[1765989656818,1.66184903,2845.7,2844.6,0.591]
[1765989657045,0.03139006,2845.8,2844.6,4.10635876]
[1765989657252,0.03139006,2845.8,2844.3,3.5157998]
[1765989657449,0.03139006,2845.8,2844.5,3.51547774]
[1765989657618,0.46438023,2845.6,2844.4,0.591]
[1765989657945,0.03139006,2846.0,2844.5,8.241]
[1765989658154,0.0080103,2845.9,2844.5,8.241]
[1765989658333,7.654,2845.8,2844.5,7.65]
[1765989658541,0.46438023,2845.5,2844.0,7.65]
[1765989658854,0.46438023,2845.5,2843.8,1.267]
[1765989658855,0.405504,2845.0,2843.8,1.267]
[1765989659061,2.103678,2844.9,2844.1,0.591]
[1765989659261,0.46438023,2845.3,2844.5,0.002]
[1765989659409,0.0080103,2845.2,2844.6,0.591]
[1765989659615,0.86988423,2845.5,2844.6,0.591]
[1765989659616,0.46438023,2845.3,2844.6,0.591]
[1765989659826,0.46438023,2845.4,2844.6,0.591]
[1765989660025,0.46438023,2845.4,2844.7,0.591]
[1765989660026,2.2260114,2845.2,2844.7,0.591]
[1765989660324,2.2260114,2845.2,2844.5,0.002]
[1765989660325,11.546924,2844.6,2844.5,0.002]